Cogmind - Beta 17 @@@ ROGUE MODE // 2026.07.25 @ 15:39:54 // Winter2019/RPGLIKE Player: Gallgagger Result: Self-destructed Performance ------------- Evolutions (1) 500 Regions Visited (6) 1200 Robots Destroyed (46) 230 Value Destroyed (1538) 1538 Prototype IDs (23) 460 Alien Tech Used (0) 0 Bonus (673) 673 TOTAL SCORE: 4601 Bonus ------- Pacifist 200 High Alert Combat Kills 173 Aligned with FarCom 300 Cogmind --------- Core Integrity 536/600 Matter 290/300 Energy 100/100 System Corruption 1% Temperature Cool (0) Movement Flying (50) Location -8/Mines Parts ------- > --- POWER (1) -------- (None) > --- PROPULSION (4) --- Flying Fortress v7 > --- UTILITY (4) ------ Seismic Detector Propulsion Shielding Propulsion Shielding Light Armor Plating > --- WEAPON (2) ------- Beam Rifle Makeshift Spear > --- INVENTORY (2) ---- PSU Rigger Guided Plasma Cannon Peak State ------------ > --- POWER ------------ (None) > --- PROPULSION ------- Flying Fortress v7 > --- UTILITY ---------- Seismic Detector Propulsion Shielding Propulsion Shielding Light Armor Plating > --- WEAPON ----------- Beam Rifle Makeshift Spear > --- INVENTORY -------- PSU Rigger Guided Plasma Cannon [Rating: 43] Favorites ----------- Power None Propulsion Aluminum Leg Leg Aluminum Leg Flight Unit Flight Unit Utility Propulsion Shielding Device Seismic Detector Protection Propulsion Shielding Weapon Makeshift Spear Energy Gun Beam Rifle Piercing Weapon Makeshift Spear Build | -11 -10 -10 -9 -9 -9 -8 ------- Run | Yrd Mat Min Mat Min Exi Min Slots Evolved 7 | . . . 6 . 1 . Power . | . . . . . . . Propulsion 3 | . . . 2 . 1 . Utility 3 | . . . 3 . . . Weapon 1 | . . . 1 . . . Parts Attached 13 | . 1 3 8 . 1 . Power . | . . . . . . . Engine . | . . . . . . . Core . | . . . . . . . Reactor . | . . . . . . . Propulsion 5 | . . 1 3 . 1 . Treads . | . . . . . . . Leg 3 | . . . 3 . . . Wheel . | . . . . . . . Hover . | . . . . . . . Flight 2 | . . 1 . . 1 . Utility 5 | . . 1 4 . . . Device 1 | . . . 1 . . . Storage . | . . . . . . . Processor . | . . . . . . . Hackware . | . . . . . . . Protection 4 | . . 1 3 . . . Artifact . | . . . . . . . Weapon 3 | . 1 1 1 . . . Energy Gun 2 | . 1 . 1 . . . Energy Cannon . | . . . . . . . Ballistic Gun . | . . . . . . . Ballistic Cannon . | . . . . . . . Launcher . | . . . . . . . Special Weapon . | . . . . . . . Impact Weapon . | . . . . . . . Slashing Weapon . | . . . . . . . Piercing Weapon 1 | . . 1 . . . . Special Melee Weapon . | . . . . . . . Unidentified Prototypes . | . . . . . . . Parts Lost 2 | . . . 2 . . . Power . | . . . . . . . Propulsion 1 | . . . 1 . . . Utility 1 | . . . 1 . . . Weapon . | . . . . . . . Highest Loss Streak 1 | . . . 1 . . . To Critical Strikes . | . . . . . . . Average Backups . | . . . . . 1 . Power . | . . . . . . . Propulsion . | . . . . . . . Utility . | . . . . . . . Weapon . | . . . . . . . Tool/Special . | . . . . . . . Unused Backups 2 | . . . . . . 2 Power . | . . . . . . . Propulsion . | . . . . . . . Utility 1 | . . . . . . 1 Weapon 1 | . . . . . . 1 Tool/Special . | . . . . . . . Average Slot Usage (%) 53 | . 11 58 46 90 75 . Leg 13 | . . . 12 30 14 . Flight 1 | . . 16 . . 4 . Device 7 | . . . 7 10 9 . Protection 14 | . . 16 11 30 28 . Energy Gun 6 | . 11 16 4 10 9 . Piercing Weapon 9 | . . 8 10 10 9 . Peak Build Rating 43 | . 1 6 13 13 43 . Average Rating 9 | . . 3 7 13 28 . On Entrance 10 | . . 1 6 13 13 43 Avg Prop Armor Cover (%) 25 | . . . 29 22 22 . Naked Turns 48 | . 48 . . . . . Heaviest Build 11 | . 2 3 11 11 11 . Greatest Support 60 | 3 3 4 25 13 60 . Greatest Overweight (x) . | . . . . . . . Average Overweight (x) . | . . . . . . . Largest Inventory Capacity 2 | . . . . 2 2 . Average Capacity . | . . . . 1 2 . Most Carried 2 | . . . . . 2 . Average Carried . | . . . . . 1 . Final Capacity 2 | . . . . 2 2 2 Final Carried 2 | . . . . . 2 2 Class Distribution -------------------- 56% | Mutant 43% | Scavenger-Mutant Dominant Class ---------------- Mutant | -10/Materials Mutant | -10/Mines Mutant | -9/Materials Scavenger-Mutant | -9/Mines Mutant | -9/Exiles Mutant | -8/Mines Resources | -11 -10 -10 -9 -9 -9 -8 ----------- Run | Yrd Mat Min Mat Min Exi Min Matter Collected 328 | 200 . 40 60 28 . . Remotely . | . . . . . . . Salvage Created 1697 | . . . 1624 73 . . Parts 114 | . . . 107 7 . . Haulers Intercepted 1 | . . . 1 . . . Recyclers Shooed . | . . . . . . . Parts Field Recycled . | . . . . . . . Retrieved Matter . | . . . . . . . Parts Self-Destructed . | . . . . . . . Prevented . | . . . . . . . Parts Restored . | . . . . . . . Kills | -11 -10 -10 -9 -9 -9 -8 ------- Run | Yrd Mat Min Mat Min Exi Min Combat Hostiles Destroyed 43 | . . . 38 5 . . Melee 42 | . . . 37 5 . . AOE 1 | . . . 1 . . . Classes Destroyed 7 | . . . 6 1 . . Worker 1 | . . . 1 . . . Hauler 1 | . . . 1 . . . Operator 1 | . . . 1 . . . Swarmer 5 | . . . . 5 . . Grunt 27 | . . . 27 . . . Brawler 1 | . . . 1 . . . Sentry 10 | . . . 10 . . . Best Kill Streak 7 | . . . 7 3 . . Combat Bots Only 7 | . . . 7 3 . . Max Kills in Single Turn 1 | . . . 1 1 . . Gunslinging . | . . . . . . . Exploded 1 | . . . 1 . . . Melee 1 | . . . 1 1 . . Uniques/NPCs Destroyed . | . . . . . . . Combat | -11 -10 -10 -9 -9 -9 -8 -------- Run | Yrd Mat Min Mat Min Exi Min Hostile Shots Fired 156 | . 4 5 122 25 . . Missed 52 | . 1 3 39 9 . . Hits 104 | . 3 2 83 16 . . Melee 1 | . . . 1 . . . Projectile 103 | . 3 2 82 16 . . Critical Strikes 2 | . . . 2 . . . Actively Blocked 1 | . . . 1 . . . Damage Taken 1333 | . 40 26 1137 130 . . Core 1142 | . 37 26 989 90 . . Absorbed by Shields . | . . . . . . . Redirected to Core 311 | . 11 . 246 54 . . Redirected to Shielding 75 | . . . 59 16 . . Core Remaining (%) 94 | 100 . 89 . . . . Volleys Fired . | . . . . . . . Largest . | . . . . . . . Hottest . | . . . . . . . Shots Fired . | . . . . . . . Gun . | . . . . . . . Cannon . | . . . . . . . Launcher . | . . . . . . . Special . | . . . . . . . Kinetic . | . . . . . . . Thermal . | . . . . . . . Explosive . | . . . . . . . Electromagnetic . | . . . . . . . Robot Hit Streak . | . . . . . . . Robot Miss Streak . | . . . . . . . Penetration Max . | . . . . . . . Secondary Targets . | . . . . . . . Shots Hit Robots 117 | . . . 108 9 . . Core Hits 47 | . . . 42 5 . . Critical Kills . | . . . . . . . Critical Parts Destroyed . | . . . . . . . Critical Strikes 8 | . . . 6 2 . . Impale 8 | . . . 6 2 . . Melee Attacks 142 | . . . 128 13 1 . Impact . | . . . . . . . Slashing . | . . . . . . . Piercing 142 | . . . 128 13 1 . Sneak Attacks 8 | . . . 8 . . . Combat Hostiles 1 | . . . 1 . . . Follow-up Attacks . | . . . . . . . Damage Inflicted 3641 | . . . 3365 276 . . Guns . | . . . . . . . Cannons . | . . . . . . . Explosions . | . . . . . . . Melee 3641 | . . . 3365 276 . . Ramming . | . . . . . . . Kinetic . | . . . . . . . Thermal . | . . . . . . . Explosive . | . . . . . . . Electromagnetic . | . . . . . . . Impact . | . . . . . . . Slashing . | . . . . . . . Piercing 3641 | . . . 3365 276 . . Highest Corruption 1 | . . . 1 1 1 . Average Corruption 1 | . . . 1 1 1 . Corruption Purged . | . . . . . . . Corruption Blocked . | . . . . . . . Effects 5 | . . . 3 1 1 . Message Errors 3 | . . . 3 . . . Matter Fused 1 | . . . . 1 . . Alerts 1 | . . . . . 1 . Overload Shots . | . . . . . . . Overflow Damage 135 | . . . 110 25 . . Projectiles . | . . . . . . . Explosions . | . . . . . . . Melee 135 | . . . 110 25 . . Knockbacks . | . . . . . . . Impact . | . . . . . . . Kinetic . | . . . . . . . Secondary . | . . . . . . . Self-Inflicted Damage . | . . . . . . . Shots . | . . . . . . . Rammed . | . . . . . . . Targets Rammed . | . . . . . . . Kicked . | . . . . . . . Crushed . | . . . . . . . Highest Temperature 2 | . . . 2 . . . Average Temperature 2 | . . . 2 . . . Received Heat Transfer 573 | . 24 15 534 . . . Siege Activations . | . . . . . . . Martial Activations . | . . . . . . . Shielding Activations . | . . . . . . . Robots Disrupted . | . . . . . . . Combat Hostiles . | . . . . . . . Robots Corrupted . | . . . . . . . Combat Hostiles . | . . . . . . . Parts Fried . | . . . . . . . Impact Corruptions . | . . . . . . . Robots Melted . | . . . . . . . Combat Hostiles . | . . . . . . . Parts Melted . | . . . . . . . Heat Transferred . | . . . . . . . Parts Sabotaged . | . . . . . . . Parts Stolen . | . . . . . . . Parts Stripped . | . . . . . . . Power Chain Reactions . | . . . . . . . Alert | -11 -10 -10 -9 -9 -9 -8 ------- Run | Yrd Mat Min Mat Min Exi Min Maximum Alert Level 3 | . . . 3 1 . . Low Security (%) 23 | 100 100 100 16 . . . Level 1 40 | . . . 36 100 . . Level 2 31 | . . . 42 . . . Level 3 3 | . . . 4 . . . Level 4 . | . . . . . . . Level 5 . | . . . . . . . High Security . | . . . . . . . Max Security . | . . . . . . . Peak Influence 714 | . 20 30 714 368 . . Initial 273 | . . 3 7 273 . . Average 330 | . 5 12 382 325 . . Influence Increases 1312 | . 30 30 1117 135 . . Destroy 0b10 Robot/C 860 | . . . 760 100 . . Destroy 0b10 Robot/NC 15 | . . . 15 . . . Destroy Leader 242 | . . . 222 20 . . Partial Spotted 60 | . . . 60 . . . Lose Combat Pursuer 135 | . 30 30 60 15 . . Influence Decreases 1312 | . 20 20 435 519 318 . Entered New Map 767 | . . 7 13 429 318 . Time Decay 525 | . 20 13 402 90 . . Lost Part 20 | . . . 20 . . . Squads Dispatched 7 | . 1 . 6 . . . Investigation 1 | . . . 1 . . . Extermination . | . . . . . . . Reinforcement 6 | . 1 . 5 . . . Assault . | . . . . . . . Garrison . | . . . . . . . Intercept . | . . . . . . . Searches Triggered . | . . . . . . . Construction Impeded . | . . . . . . . Haulers Reinforced . | . . . . . . . Active Scanning Responses . | . . . . . . . Cargo Convoy Interrupts . | . . . . . . . Stealth | -11 -10 -10 -9 -9 -9 -8 --------- Run | Yrd Mat Min Mat Min Exi Min Distress Signals 1 | . . . 1 . . . Communications Jammed . | . . . . . . . Distress Signals . | . . . . . . . Times Spotted 69 | . 6 2 54 7 . . Peak Tracking Total 11 | . 3 2 11 3 9 . Tactical Retreats 7 | . 1 1 4 1 . . Traps | -11 -10 -10 -9 -9 -9 -8 ------- Run | Yrd Mat Min Mat Min Exi Min Traps Triggered 3 | . . . 3 . . . Indirectly . | . . . . . . . Trap Hack Attempts . | . . . . . . . Triggered . | . . . . . . . Disarmed . | . . . . . . . Reprogrammed . | . . . . . . . Reused . | . . . . . . . Traps Extracted . | . . . . . . . Installed . | . . . . . . . Triggered . | . . . . . . . Machines | -11 -10 -10 -9 -9 -9 -8 ---------- Run | Yrd Mat Min Mat Min Exi Min Machines Disabled 1 | . . . . . 1 . Max in Single Turn 1 | . . . . . 1 . Machines Repaired . | . . . . . . . Machines Dismantled . | . . . . . . . Machines Sabotaged . | . . . . . . . Overloaded Fab Kills . | . . . . . . . Hacking | -11 -10 -10 -9 -9 -9 -8 --------- Run | Yrd Mat Min Mat Min Exi Min Machines Accessed 1 | . . . . . 1 . Terminals . | . . . . . . . Fabricators . | . . . . . . . Repair Stations . | . . . . . . . Recycling Units . | . . . . . . . Scanalyzers . | . . . . . . . Garrison Access . | . . . . . . . Total Hacks 1 | . . . . . 1 . Successful 1 | . . . . . 1 . Failed . | . . . . . . . Catastrophic . | . . . . . . . Database Lockouts . | . . . . . . . Manual 1 | . . . . . 1 . Terminals . | . . . . . . . Fabricators . | . . . . . . . Repair Stations . | . . . . . . . Recycling Units . | . . . . . . . Scanalyzers . | . . . . . . . Garrison Access . | . . . . . . . Terminal Hacks 1 | . . . . . 1 . Proto ID Catalog 1 | . . . . . 1 . Fabricator Hacks . | . . . . . . . Repair Station Hacks . | . . . . . . . Recycling Unit Hacks . | . . . . . . . Scanalyzer . | . . . . . . . Garrison Access Hacks . | . . . . . . . Unauthorized Hacks . | . . . . . . . Terminals . | . . . . . . . Fabricators . | . . . . . . . Repair Stations . | . . . . . . . Recycling Units . | . . . . . . . Scanalyzers . | . . . . . . . Garrison Access . | . . . . . . . Data Cores Recovered . | . . . . . . . Used . | . . . . . . . Hacking Detections . | . . . . . . . Full Trace Events . | . . . . . . . Feedback Events . | . . . . . . . Feedback Blocked . | . . . . . . . Robot Schematics Acquired . | . . . . . . . Robots Built . | . . . . . . . Authchips . | . . . . . . . Time . | . . . . . . . Total Robot Build Rating . | . . . . . . . Part Schematics Acquired . | . . . . . . . Parts Built . | . . . . . . . Authchips . | . . . . . . . Time . | . . . . . . . Total Part Build Rating . | . . . . . . . Part Studies Acquired . | . . . . . . . Parts Repaired . | . . . . . . . Time . | . . . . . . . Parts Recycled . | . . . . . . . Recycled Matter . | . . . . . . . Retrieved Matter . | . . . . . . . Retrieved Components . | . . . . . . . Parts Scanalyzed . | . . . . . . . Part Schematics Acquired . | . . . . . . . Parts Damaged . | . . . . . . . Bothacking | -11 -10 -10 -9 -9 -9 -8 ------------ Run | Yrd Mat Min Mat Min Exi Min Used RIF Installer . | . . . . . . . Robots Hacked . | . . . . . . . Non-combat . | . . . . . . . Combat . | . . . . . . . Robot Hacks Applied . | . . . . . . . Relay Couplers Released . | . . . . . . . Fabnet Peak Effective % . | . . . . . . . Robots Rewired . | . . . . . . . Allies Hacked . | . . . . . . . Hacks Repelled . | . . . . . . . Allies | -11 -10 -10 -9 -9 -9 -8 -------- Run | Yrd Mat Min Mat Min Exi Min Total Allies . | . . . . . . . Largest Group . | . . . . . . . Highest-Rated Group . | . . . . . . . Highest-Rated Ally . | . . . . . . . Total Orders . | . . . . . . . Ally Attacks . | . . . . . . . Total Damage . | . . . . . . . Kills . | . . . . . . . Allies Corrupted . | . . . . . . . Allies Melted . | . . . . . . . Intel | -11 -10 -10 -9 -9 -9 -8 ------- Run | Yrd Mat Min Mat Min Exi Min Active Infowar (turns) 1040 | . . . 734 183 123 . Seismic 1040 | . . . 734 183 123 . Robot Analysis Total . | . . . . . . . Derelict Logs Recovered 2 | . . 1 . 1 . . Drone Launches . | . . . . . . . Drone Recoveries . | . . . . . . . Exploration | -11 -10 -10 -9 -9 -9 -8 ------------- Run | Yrd Mat Min Mat Min Exi Min Turns Passed 1454 | 18 83 55 992 183 123 . Spaces Moved 1845 | 36 162 120 1010 300 217 . Core 1597 | 36 162 24 963 300 112 . Treads . | . . . . . . . Legs 3 | . . . 3 . . . Wheels . | . . . . . . . Hover . | . . . . . . . Flight 245 | . . 96 44 . 105 . Fastest Speed 40 | 50 50 40 40 50 50 . Average Speed 49 | 50 50 42 49 50 50 . Slowest Speed 120 | 50 50 50 120 50 50 . Overloaded Moves . | . . . . . . . Propulsion Burnouts . | . . . . . . . Robots Hopped . | . . . . . . . Potential Cave-ins . | . . . . . . . Cave-ins Triggered . | . . . . . . . Exploration Rate (%) 43 | 3 43 42 88 59 60 7 Regions Visited 6 Branch Regions 4 Pre-discovered Areas . | . . . . . . . Known Exits Taken 1 | . . 1 . . . . Unknown Exits Taken 5 | 1 1 . 1 1 1 . Scrap Searched 3 | . . 2 . 1 . . Spaces Dug . | . . . . . . . Terrain Destroyed . | . . . . . . . Melee . | . . . . . . . Projectile . | . . . . . . . AOE . | . . . . . . . Terrain Rammed . | . . . . . . . Walls Destroyed . | . . . . . . . Machines Disabled . | . . . . . . . Actions | -11 -10 -10 -9 -9 -9 -8 --------- Run | Yrd Mat Min Mat Min Exi Min Total 2226 | 35 162 122 1360 317 230 . Wait 172 | . . . 163 2 7 . Move 1839 | 35 161 119 1009 299 216 . Hop . | . . . . . . . Pick Up 2 | . . . . . 2 . Fast Attach 12 | . 1 2 8 . 1 . Attach . | . . . . . . . Detach . | . . . . . . . Swap 1 | . . 1 . . . . Drop 3 | . . . . . 3 . Fire . | . . . . . . . Melee 142 | . . . 128 13 1 . Ram . | . . . . . . . Kick . | . . . . . . . Crush . | . . . . . . . Escape Stasis . | . . . . . . . Rewire . | . . . . . . . Trap . | . . . . . . . Miscellaneous 55 | . . . 52 3 . . Route ------- -11/Scrapyard -10/Materials (discovered 2 exits: *Mat / [*Min]) -10/Mines -9/Materials (discovered 4 exits: [*Mat x3] / [*Min]) -9/Mines (discovered 2 exits: [*Mat] / *Exi) -9/Exiles (discovered 2 exits: [*Min x2]) -8/Mines History --------- Turn | Location | Event 3 | -11/Scrapyard | Discovered new exit (range 16) 19 | -11/Scrapyard | Entered Materials 54 | -10/Materials | Discovered new exit (range 11) 96 | -10/Materials | Discovered new exit (range 10) 102 | -10/Materials | Entered Mines 104 | -10/Mines | Identified exit to Materials 131 | -10/Mines | A weapon hastily lodged in a ceiling crevice suddenly fell to the ground 157 | -10/Mines | Entered Materials 159 | -9/Materials | Reached level 2 173 | -9/Materials | Upgraded with Propulsion slot (x2) 173 | -9/Materials | Upgraded with Utility slot (x2) 173 | -9/Materials | Upgraded with Weapon slot (x1) 294 | -9/Materials | Reached level 3 308 | -9/Materials | Build established: Mutant 358 | -9/Materials | Destroyed 7 combat bots 399 | -9/Materials | Discovered new exit (range 7) 551 | -9/Materials | Discovered new exit (range 16) 635 | -9/Materials | Reached level 4 643 | -9/Materials | Upgraded with Utility slot (x1) 660 | -9/Materials | Core integrity fell below 50% 961 | -9/Materials | Reached level 5 1061 | -9/Materials | Discovered new exit (range 16) 1063 | -9/Materials | Build established: Scavenger-Mutant 1127 | -9/Materials | Discovered new exit (range 15) 1149 | -9/Materials | Entered Mines 1151 | -9/Mines | Reached level 6 1206 | -9/Mines | Received a Rocket Launcher from a helpful Derelict 1292 | -9/Mines | Learned 2 Materials zone layouts 1299 | -9/Mines | Discovered new exit (range 10) 1318 | -9/Mines | Found a damaged Exp. Sensor Array with a note attached 1330 | -9/Mines | Deemed a non-threat by the Exiles lab entrance 1330 | -9/Mines | Discovered new exit (range 5) 1332 | -9/Mines | Entered Exiles 1340 | -9/Exiles | Discovered new exit (range 15) 1346 | -9/Exiles | Met 8R-AWN 1353 | -9/Exiles | Met EX-HEX 1367 | -9/Exiles | Met EX-BIN 1373 | -9/Exiles | Aligned with FarCom system 1373 | -9/Exiles | Given EX-Vault access code 1385 | -9/Exiles | Opened EX-Vault 1387 | -9/Exiles | Upgraded with Propulsion slot (x1) 1390 | -9/Exiles | Found Flying Fortress v7 1393 | -9/Exiles | Found Gui. Plasma Cannon 1394 | -9/Exiles | Found PSU Rigger 1404 | -9/Exiles | Warned to stay clear of 0b10 Research branches 1421 | -9/Exiles | Met EX-DEC 1429 | -9/Exiles | Attacked by the Exiles 1441 | -9/Exiles | Discovered new exit (range 14) 1455 | -9/Exiles | Stole three prototypes: Flying Fortress v7, PSU Rigger, Gui. Plasma Cannon 1455 | -9/Exiles | Entered Mines 1455 | -8/Mines | Self-destructed Last Messages --------------- 01387_ Upgraded: Propulsion Slot (+1) 01389_ Dropped Aluminum Leg. 01390_ Acquired Flying Fortress v7. 01393_ Acquired Gui. Plasma Cannon. 01394_ Acquired PSU Rigger. EX-BIN: Oh yeah, I'd suggest you stay away from the 0b10 Research branches, since the FarCom signals could be picked up there, but you're welcome to try if you really want to. And if we have to leave here due to unforeseen circumstances, don't worry the FarCom system will continue to maintain contact via our distributed network. EX-DEC: Ah I see we have a visitor. One wrong move in here and I'll invert your atomic chain! 01423_ EX-DEC: "Oops, I hope HEX didn't hear that..." 01428_ Machine disabled. 01429_ EXILES: Hostile robot within lab perimeter. Defensive protocols time, folks! 01441_ EXIT=FOUND LOCATION=UNKNOWN GOAL=ESCAPE Map ----- +----------------------------------------------------+ | ?????????????????????????????????????????????????? | | ?????????????????????????????????????????????????? | | ?????????????????????????????????????????????????? | | ?????????????????????????????????????????????????? | | ?????????????????????????????????????????????????? | | ?????????????????????????????????????????????????? | | ?????????????????????????????????????????????????? | | ?????????????????????????????????????????????????? | | ?????????????????????????????????????????????????? | | ?????????????????????????????????????????????????? | | ?????????????????????????????????????????????????? | | ???????????????????????????#?????????????????????? | | ????????????????????????### ?????????????????????? | | ???????????????????????? ?????????????????????? | | ???????????????????????? ?????????????????????? | | ???????????????????????? #?????????????????????? | | ???????????????????????? ##????????????????????? | | ???????????????????????? ##???????????????????? | | ???????????? ?????????? #???????????????????? | | ???????????? ????????# #???????????????????? | | ???????????? ?????## s ????????????????????? | | ??????????? ##### #????????????????????? | | ??????????? s #????????????????????? | | ???????????? s #????????????????????? | | ????????????????? #????????????????????? | | ??????????????????????# @ #????????????????????? | | ??????????????????????## ##????????????????????? | | ???????????????????????## #?????????????????????? | | ????????????????????????# #?????????????????????? | | ????????????????????????# #?????????????????????? | | ????????????????????????g ?????????????????????? | | ???????????????????????? ?????????????????????? | | ???????????????????????? b ????????????????????? | | ???????????????????????? ????????????????????? | | ???????????????????????? ## ????????????????????? | | ????????????????????????##?? #???????????????????? | | ???????????????????????????? #???????????????????? | | ???????????????????????????? ???????????????????? | | ?????????????????????????????#???????????????????? | | ?????????????????????????????????????????????????? | | ?????????????????????????????????????????????????? | | ?????????????????????????????????????????????????? | | ?????????????????????????????????????????????????? | | ?????????????????????????????????????????????????? | | ?????????????????????????????????????????????????? | | ?????????????????????????????????????????????????? | | ?????????????????????????????????????????????????? | | ?????????????????????????????????????????????????? | | ?????????????????????????????????????????????????? | | ?????????????????????????????????????????????????? | +----------------------------------------------------+ Best States ------------- Heat Dissipation 25 Energy Generation 5 Energy Capacity 100 Matter Stores 300 Matter Capacity 300 Sight Range 16 Terrain Scan Density 10 Armor Coverage 150 Propulsion Shielding 33 Evasion (%) 62 Item Schematics ----------------- None Robot Schematics ------------------ None Fabricated ------------ Nothing Repaired ---------- Nothing Studied --------- None Alien Tech Used ----------------- None Achievements -------------- None Challenges ------------ None RPGLIKE | -11 -10 -10 -9 -9 -9 -8 --------- Run | Yrd Mat Min Mat Min Exi Min Levels Raised 5 | . . . 4 1 . . XP Earned 11533 | 3000 . 600 6483 1100 350 . XP Spent 9450 | . . . 7600 750 1100 . Upgrades 17 | . . . 14 2 1 . Propulsion Slot 3 | . . . 2 . 1 . Utility Slot 3 | . . . 3 . . . Weapon Slot 1 | . . . 1 . . . Mass Support 2 | . . . 2 . . . Inventory Capacity 2 | . . . . 2 . . Melee Accuracy 6 | . . . 6 . . . Protomatter Created 554 | . . . 548 6 . . Integrity Restored 1178 | . . . 1133 45 . . Core 1078 | . . . 1033 45 . . Parts 100 | . . . 100 . . . Protomatter Decayed 27 | . . . 27 . . . Game ------ Seed FrostThrusterLance Manual? 0 Play Time 00:10:42 Cumulative 689.0 hours Start 2026.07.25 @ 15:29:52 End 2026.07.25 @ 15:39:54 Sessions 1 Manual Loads 0 Difficulty Rogue Special Mode Winter2019/RPGLIKE Game No. 350 Rogue 196 Adventurer 154 Explorer 0 Win Type - Total 24 Types 4/6/5/3/2/1/0/1/1/1 Lore% 95 Gallery% 89 Achievement% 68 Wizard Run 0 Options --------- Layout 0 ASCII 0 Keyboard 0 Movement Numpad Keybinds 0 Fullscreen 2 Font 18/SmallcapsGlow Map View 76x50 Zoom Use 0% Tactical HUD 1 Map Filters NONE Filters NONE Steam 1 RUN: 2d0b7842-64ee-473a-abed-3191013e0838